lending/lending_fUSD_20241229
["ID","MTS","AMOUNT","RATE_DAILY","PERIOD"]
[347133887,1735515050751,-1026.11,0.00014092,2]
[347133888,1735515050760,-890.04,0.00014092,2]
[347133889,1735515050770,-700.98,0.00014092,2]
[347133890,1735515050779,-797.05,0.00014092,2]
[347133891,1735515050789,-736.52,0.00014092,2]
[347133892,1735515050798,-500.0,0.00014093,2]
[347133893,1735515050807,-500.0,0.00014093,2]
[347133894,1735515050816,-500.0,0.00014093,2]
[347133895,1735515050826,-500.0,0.00014093,2]
[347133896,1735515050835,-500.0,0.00014093,2]
[347133897,1735515050844,-500.0,0.00014093,2]
[347133898,1735515050853,-500.0,0.00014093,2]
[347133899,1735515050864,-477.82978707,0.00014093,2]
[347133900,1735515050874,-500.0,0.00014093,2]
[347133901,1735515050883,-500.0,0.00014093,2]
[347133902,1735515050892,-500.0,0.00014093,2]
[347133903,1735515050901,-500.0,0.00014093,2]
[347133904,1735515050910,-500.0,0.00014093,2]
[347133905,1735515050919,-500.0,0.00014093,2]
[347133906,1735515050928,-500.0,0.00014093,2]
[347133907,1735515050938,-500.0,0.00014093,2]
[347133908,1735515050948,-541.65,0.00014093,2]
[347133909,1735515050957,-500.0,0.00014093,2]
[347133910,1735515050967,-500.0,0.00014093,2]
[347133911,1735515050976,-500.0,0.00014093,2]
[347133912,1735515050985,-535.59,0.00014093,2]
[347133913,1735515050995,-509.91,0.00014093,2]
[347133914,1735515051004,-500.0,0.00014093,2]
[347133915,1735515051013,-500.0,0.00014093,2]
[347133916,1735515051022,-500.0,0.00014093,2]
[347133917,1735515051032,-520.3,0.00014093,2]
[347133918,1735515051041,-500.0,0.00014093,2]
[347133919,1735515051050,-500.0,0.00014093,2]
[347133920,1735515051059,-500.0,0.00014093,2]
[347133921,1735515051068,-500.0,0.00014093,2]
[347133922,1735515051077,-500.0,0.00014093,2]
[347133923,1735515051087,-500.0,0.00014093,2]
[347133924,1735515051096,-500.0,0.00014093,2]
[347133925,1735515051105,-500.0,0.00014093,2]
[347133926,1735515051117,-500.0,0.00014093,2]
[347133927,1735515051127,-500.0,0.00014093,2]
[347133928,1735515051136,-500.0,0.00014093,2]
[347133929,1735515051146,-500.0,0.00014093,2]
[347133930,1735515051155,-500.0,0.00014093,2]
[347133931,1735515051164,-500.0,0.00014093,2]
[347133932,1735515051174,-500.0,0.00014093,2]
[347133933,1735515051184,-500.0,0.00014093,2]
[347133934,1735515051193,-500.0,0.00014093,2]
[347133935,1735515051202,-500.0,0.00014093,2]
[347133936,1735515051212,-500.0,0.00014093,2]
[347133937,1735515051221,-500.0,0.00014093,2]
[347133938,1735515051231,-500.0,0.00014093,2]
[347133939,1735515051240,-500.0,0.00014093,2]
[347133940,1735515051249,-500.0,0.00014093,2]
[347133941,1735515051258,-500.0,0.00014093,2]
[347133942,1735515051268,-544.91,0.00014093,2]
[347133943,1735515051278,-500.0,0.00014093,2]
[347133944,1735515051288,-587.02,0.00014093,2]
[347133945,1735515051297,-626.08,0.00014093,2]
[347133946,1735515051306,-291.84460439,0.00014093,2]
[347133947,1735515051315,-590.95091074,0.00014093,2]
[347133948,1735515051325,-500.0,0.00014093,2]
[347133949,1735515051333,-793.26,0.00014093,2]
[347133950,1735515051343,-500.0,0.00014093,2]
[347133951,1735515051351,-500.0,0.00014093,2]
[347133952,1735515051361,-210.43243563,0.00014093,2]
[347133953,1735515051370,-500.0,0.00014093,2]
[347133954,1735515051380,-533.7,0.00014093,2]
[347133955,1735515051390,-500.0,0.00014093,2]
[347133956,1735515051399,-500.0,0.00014093,2]
[347133957,1735515051408,-500.0,0.00014093,2]
[347133958,1735515051417,-500.0,0.00014093,2]
[347133959,1735515051427,-500.0,0.00014093,2]
[347133960,1735515051436,-500.0,0.00014093,2]
[347133961,1735515051445,-500.0,0.00014093,2]
[347133962,1735515051455,-500.0,0.00014093,2]
[347133963,1735515051464,-500.0,0.00014093,2]
[347133964,1735515051473,-448.44,0.00014093,2]
[347133965,1735515051483,-500.0,0.00014093,2]
[347133966,1735515051493,-500.0,0.00014093,2]
[347133967,1735515051502,-500.0,0.00014093,2]
[347133968,1735515051511,-500.0,0.00014093,2]
[347133969,1735515051521,-567.41,0.00014093,2]
[347133970,1735515051533,-500.0,0.00014093,2]
[347133971,1735515051542,-500.0,0.00014093,2]
[347133972,1735515051551,-500.0,0.00014093,2]
[347133973,1735515051560,-500.0,0.00014093,2]
[347133974,1735515051569,-500.0,0.00014093,2]
[347133975,1735515051578,-500.0,0.00014093,2]
[347133976,1735515051590,-500.0,0.00014093,2]
[347133977,1735515051600,-500.0,0.00014093,2]
[347133978,1735515051611,-500.0,0.00014093,2]
[347133979,1735515051620,-500.0,0.00014093,2]
[347133980,1735515051629,-500.0,0.00014093,2]
[347133981,1735515051639,-500.0,0.00014093,2]
[347133982,1735515051648,-720.21,0.00014093,2]
[347133983,1735515051822,-500.0,0.00014093,2]
[347133984,1735515051833,-500.0,0.00014093,2]
[347133985,1735515051842,-500.0,0.00014093,2]
[347133986,1735515051852,-500.0,0.00014093,2]
[347133987,1735515051862,-500.0,0.00014093,2]
[347133988,1735515051871,-500.0,0.00014093,2]
[347133989,1735515051880,-500.0,0.00014093,2]
[347133990,1735515051890,-163.01216865,0.00014093,2]
[347133991,1735515051899,-500.0,0.00014093,2]
[347133992,1735515051908,-500.0,0.00014093,2]
[347133993,1735515051917,-500.0,0.00014093,2]
[347133994,1735515051927,-500.0,0.00014093,2]
[347133995,1735515051936,-500.0,0.00014093,2]
[347133996,1735515051945,-500.0,0.00014093,2]
[347133997,1735515051954,-500.0,0.00014093,2]
[347133998,1735515051963,-500.0,0.00014093,2]
[347133999,1735515051972,-500.0,0.00014093,2]
[347134000,1735515051982,-500.0,0.00014093,2]
[347134001,1735515051991,-500.0,0.00014093,2]
[347134002,1735515052001,-500.0,0.00014093,2]
[347134003,1735515052010,-500.0,0.00014093,2]
[347134004,1735515052019,-500.0,0.00014093,2]
[347134005,1735515052028,-500.0,0.00014093,2]
[347134006,1735515052037,-825.39,0.00014093,2]
[347134007,1735515052046,-500.0,0.00014093,2]
[347134008,1735515052056,-2875.26,0.00014094,2]
[347134009,1735515052065,-4377.35,0.00014094,2]
[347134010,1735515052074,-1365.07,0.00014094,2]
[347134011,1735515052083,-2286.58,0.00014094,2]
[347134012,1735515052092,-561.73,0.00014094,2]
[347134013,1735515052101,-1384.46,0.00014094,2]
[347134014,1735515052111,-1317.02,0.00014094,2]
[347134015,1735515052121,-1495.71,0.00014094,2]
[347134016,1735515052130,-1011.62,0.00014094,2]
[347134017,1735515052139,-1406.51,0.00014094,2]
[347134018,1735515052149,-3010.3,0.00014094,2]
[347134019,1735515052159,-4019.91,0.00014094,2]
[347134020,1735515052168,-4019.91,0.00014094,2]
[347134021,1735515052177,-16346.07,0.00014094,2]
[347134022,1735515052187,-2665.01,0.00014094,2]
[347134023,1735515052197,-1426.18,0.00014094,2]
[347134024,1735515052206,-1376.27,0.00014094,2]
[347134025,1735515052215,-2654.74,0.00014094,2]
[347134026,1735515052225,-18349.74,0.00014094,2]
[347134027,1735515052234,-848.02,0.00014094,2]
[347134028,1735515052243,-3541.06,0.00014094,2]
[347134029,1735515052252,-2143.48,0.00014094,2]
[347134030,1735515052261,-1407.67,0.00014094,2]
[347134031,1735515052271,-3959.85,0.00014094,2]
[347134032,1735515052281,-663.08,0.00014094,2]
[347134033,1735515052290,-1374.56,0.00014094,2]
[347134034,1735515052299,-1420.5,0.00014094,2]
[347134035,1735515052308,-1052.04,0.00014094,2]
[347134036,1735515052317,-1802.11,0.00014094,2]
[347134037,1735515052327,-3636.77,0.00014094,2]
[347134038,1735515052336,-526.11756749,0.00014094,2]
[347134039,1735515052350,-415.54243251,0.00014094,2]
[347134040,1735515052361,-135.30756749,0.00014094,2]
[347134041,1735515052373,-1633.13243251,0.00014094,2]
[347134042,1735515052382,-2649.82,0.00014094,2]
[347134043,1735515052392,-2150.96,0.00014094,2]
[347134044,1735515052402,-1212.46,0.00014094,2]
[347134045,1735515052411,-954.02,0.00014094,2]
[347134046,1735515052420,-871.52572045,0.00014094,2]
[347134047,1735515052432,-1077.85427955,0.00014094,2]
[347134048,1735515052441,-1000.0,0.00014137,2]
[347134049,1735515052451,-1655.98727364,0.00014198,2]
[347134050,1735515052462,-397.02350146,0.00014198,2]
[347134051,1735515144305,500.0,0.00010955,2]
[347134052,1735515144328,312.29,0.00010955,2]
[347134053,1735515247431,150.123008,0.00023,120]
[347134054,1735515248363,150.123008,0.00023,120]
[347134055,1735515248965,150.123008,0.00023,120]
[347134056,1735515249375,150.123008,0.00023,120]
[347134057,1735515249955,150.123008,0.00023,120]
[347134058,1735515250431,150.123008,0.00023,120]
[347134059,1735515250891,150.123008,0.00023,120]
[347134060,1735515251646,150.123008,0.00023,120]
[347134061,1735515251923,150.123008,0.00023,120]
[347134062,1735515252539,150.123008,0.00023,120]
[347134063,1735515252988,150.123008,0.00023,120]
[347134064,1735515253470,150.123008,0.00023,120]
[347134065,1735515254095,150.123008,0.00023,120]
[347134066,1735515254508,150.123008,0.00023,120]
[347134067,1735515254942,150.123008,0.00023,120]
[347134068,1735515255481,150.123008,0.00023,120]
[347134069,1735515255963,150.123008,0.00023,120]
[347134070,1735515256502,150.123008,0.00023,120]
[347134071,1735515256963,150.123008,0.00023,120]
[347134072,1735515257835,150.123008,0.00023,120]
[347134073,1735515259349,150.123008,0.00023,120]
[347134074,1735515259868,150.123008,0.00023,120]
[347134075,1735515260352,150.123008,0.00023,120]
[347134076,1735515260919,150.123008,0.00023,120]
[347134077,1735515261382,150.123008,0.00023,120]
[347134078,1735515261925,150.123008,0.00023,120]
[347134079,1735515262400,150.123008,0.00023,120]
[347134080,1735515262895,150.123008,0.00023,120]
[347134081,1735515263459,150.123008,0.00023,120]
[347134082,1735515265182,150.123008,0.00023,120]
[347134083,1735515342166,500.0,0.00015462,120]
[347134084,1735515342484,500.0,0.00015489,120]
[347134085,1735515342784,500.0,0.00015517,120]
[347134086,1735515535930,1000.0,0.00013698,30]
[347134087,1735515811175,2950.0,0.00023,120]
[347134088,1735515880483,187.71,0.00010137,2]
[347134089,1735515880505,59.82,0.00010137,2]
[347134090,1735516027649,150.123008,0.00023,120]
[347134091,1735516028694,150.123008,0.00023,120]
[347134092,1735516029202,150.123008,0.00023,120]
[347134093,1735516029784,150.123008,0.00023,120]
[347134094,1735516030413,150.123008,0.00023,120]
[347134095,1735516092821,440.18,9.719e-05,2]
[347134096,1735516092848,369.95,9.719e-05,2]
[347134108,1735516232072,-1500.0,0.00011411,2]
[347134109,1735516232082,-920.19,0.00011629,2]
[347134110,1735516232091,-161.93,0.00011675,2]
[347134111,1735516232101,-250.0,0.00011696,2]
[347134112,1735516232110,-1490.99939886,0.00011843,2]
[347134113,1735516232119,-810.13,0.00011983,2]
[347134114,1735516232129,-450.0,0.00012,2]
[347134115,1735516232138,-469.92,0.00012334,2]
[347134116,1735516232148,-469.92,0.00012337,2]
[347134117,1735516232157,-469.92,0.0001234,2]
[347134118,1735516232166,-469.92,0.00012343,2]
[347134119,1735516232175,-469.92,0.00012347,2]
[347134120,1735516232184,-469.92,0.0001235,2]
[347134121,1735516232194,-469.92,0.00012353,2]
[347134122,1735516232203,-23900.0,0.00012353,2]
[347134123,1735516232212,-469.92,0.00012356,2]
[347134124,1735516232222,-469.92,0.0001236,2]
[347134125,1735516232232,-469.92,0.00012363,2]
[347134126,1735516232242,-469.92,0.00012366,2]
[347134127,1735516232250,-469.92,0.00012369,2]
[347134128,1735516232259,-469.92,0.00012373,2]
[347134129,1735516232269,-469.92,0.00012376,2]
[347134130,1735516232278,-469.92,0.00012379,2]
[347134131,1735516232287,-469.92,0.00012382,2]
[347134132,1735516232296,-470.98,0.00012384,2]
[347134133,1735516232305,-469.92,0.00012385,2]
[347134134,1735516232315,-469.92,0.00012389,2]
[347134135,1735516232324,-469.92,0.00012392,2]
[347134136,1735516232333,-469.92,0.00012395,2]
[347134137,1735516232343,-988.42,0.00012422,2]
[347134138,1735516232352,-250.0,0.00012431,2]
[347134139,1735516232362,-1000.0,0.00012546,2]
[347134140,1735516232371,-1500.0,0.00012776,2]
[347134141,1735516232380,-1500.0,0.00012817,2]
[347134142,1735516232390,-480.39,0.0001301,2]
[347134143,1735516232400,-492.01,0.00013011,2]
[347134144,1735516232410,-507.9,0.00013011,2]
[347134145,1735516232420,-490.72,0.00013012,2]
[347134146,1735516232430,-501.88,0.00013013,2]
[347134147,1735516232441,-504.05,0.00013013,2]
[347134148,1735516232451,-502.74,0.00013016,2]
[347134149,1735516232461,-505.76,0.00013021,2]
[347134150,1735516232471,-498.92,0.00013031,2]
[347134151,1735516232480,-493.61,0.00013051,2]
[347134152,1735516232489,-920.19,0.00013083,2]
[347134153,1735516232499,-496.57,0.00013091,2]
[347134154,1735516232508,-909.88403462,0.00013141,2]
[347134155,1735516232520,-20653.11596538,0.00013141,2]
[347134156,1735516232529,-500.0,0.00013268,2]
[347134157,1735516232538,-982.47,0.00013268,2]
[347134158,1735516232548,-500.0,0.00013268,2]
[347134159,1735516232557,-3402.68,0.00013268,2]
[347134160,1735516232567,-952.59,0.00013268,2]
[347134161,1735516232577,-1215.87,0.00013268,2]
[347134162,1735516232586,-644.97,0.00013268,2]
[347134163,1735516232596,-1605.86,0.00013268,2]
[347134164,1735516232605,-500.0,0.00013268,2]
[347134165,1735516232614,-500.0,0.00013268,2]
[347134166,1735516232624,-500.0,0.00013268,2]
[347134167,1735516232633,-500.0,0.00013268,2]
[347134168,1735516232643,-500.0,0.00013268,2]
[347134169,1735516232653,-500.0,0.00013268,2]
[347134170,1735516232662,-500.0,0.00013268,2]
[347134171,1735516232671,-500.0,0.00013268,2]
[347134172,1735516232680,-500.0,0.00013268,2]
[347134173,1735516232690,-752.02,0.00013269,2]
[347134174,1735516232699,-1498.88,0.00013269,2]
[347134175,1735516232709,-1890.79,0.00013269,2]
[347134176,1735516232718,-1063.72,0.00013269,2]
[347134177,1735516232728,-836.69,0.00013269,2]
[347134178,1735516232737,-153.856846,0.00013269,2]
[347134179,1735516232747,-155.940262,0.00013269,2]
[347134180,1735516232756,-1098.681144,0.00013269,2]
[347134181,1735516232765,-1174.258366,0.00013269,2]
[347134182,1735516232775,-2918.9877986,0.00013269,2]
[347134185,1735516232792,-8783.6322014,0.00013269,2]
[347134187,1735516232801,-500.0,0.00013269,2]
[347134189,1735516232811,-500.0,0.00013269,2]
[347134191,1735516232820,-500.0,0.00013269,2]
[347134192,1735516232829,-500.0,0.00013269,2]
[347134194,1735516232838,-500.0,0.00013269,2]
[347134195,1735516232847,-975.0,0.00013269,2]
[347134196,1735516232857,-500.0,0.00013269,2]
[347134197,1735516232866,-73.36160097,0.00013269,2]
[347134198,1735516232892,-426.63839903,0.00013269,2]
[347134199,1735516232904,-500.0,0.00013269,2]
[347134200,1735516232913,-951.99,0.00013269,2]
[347134201,1735516232923,-500.0,0.00013269,2]
[347134202,1735516232932,-414.46906239,0.00013269,2]
[347134203,1735516232943,-500.0,0.00013269,2]
[347134204,1735516232952,-500.0,0.00013269,2]
[347134205,1735516232961,-500.0,0.00013269,2]
[347134206,1735516232971,-500.0,0.00013269,2]
[347134207,1735516232980,-500.0,0.00013269,2]
[347134208,1735516232990,-500.0,0.00013269,2]
[347134209,1735516233000,-500.0,0.00013269,2]
[347134210,1735516233011,-500.0,0.00013269,2]
[347134211,1735516233020,-500.0,0.00013269,2]
[347134212,1735516233029,-500.0,0.00013269,2]
[347134213,1735516233039,-500.0,0.00013269,2]
[347134214,1735516233049,-500.0,0.00013269,2]
[347134215,1735516233059,-5264.89,0.00013269,2]
[347134216,1735516233068,-477.17712193,0.00013269,2]
[347134217,1735516233077,-500.0,0.00013269,2]
[347134218,1735516233088,-500.0,0.00013269,2]
[347134219,1735516233098,-500.0,0.00013269,2]
[347134220,1735516233107,-1033.62,0.00013269,2]
[347134221,1735516233118,-500.29448192,0.00013269,2]
[347134222,1735516233128,-500.0,0.00013269,2]
[347134223,1735516233138,-500.0,0.00013269,2]
[347134224,1735516233147,-500.0,0.00013269,2]
[347134225,1735516233157,-500.0,0.00013269,2]
[347134226,1735516233166,-500.0,0.00013269,2]
[347134227,1735516233175,-500.0,0.00013269,2]
[347134228,1735516233185,-500.0,0.00013269,2]
[347134229,1735516233195,-548.11,0.00013269,2]
[347134230,1735516233204,-948.38,0.00013269,2]
[347134231,1735516233214,-500.0,0.00013269,2]
[347134232,1735516233223,-500.0,0.00013269,2]
[347134233,1735516233233,-572.21,0.00013269,2]
[347134234,1735516233243,-500.0,0.00013269,2]
[347134235,1735516233252,-500.0,0.00013269,2]
[347134236,1735516233262,-500.0,0.00013269,2]
[347134237,1735516233272,-500.0,0.00013269,2]
[347134238,1735516233282,-500.0,0.00013269,2]
[347134239,1735516233291,-500.0,0.00013269,2]
[347134240,1735516233301,-500.0,0.00013269,2]
[347134241,1735516233310,-500.0,0.00013269,2]
[347134242,1735516233321,-1143.41,0.00013269,2]
[347134243,1735516233331,-500.0,0.00013269,2]
[347134244,1735516233340,-500.0,0.00013269,2]
[347134245,1735516233349,-500.0,0.00013269,2]
[347134246,1735516233359,-500.0,0.00013269,2]
[347134247,1735516233368,-500.0,0.00013269,2]
[347134248,1735516233378,-500.0,0.00013269,2]
[347134249,1735516233388,-630.18,0.00013269,2]
[347134250,1735516233397,-500.0,0.00013269,2]
[347134251,1735516233407,-500.0,0.00013269,2]
[347134252,1735516233417,-500.0,0.00013269,2]
[347134253,1735516233427,-500.0,0.00013269,2]
[347134254,1735516233436,-500.0,0.00013269,2]
[347134255,1735516233446,-500.0,0.00013269,2]
[347134256,1735516233455,-500.0,0.00013269,2]
[347134257,1735516233465,-530.62,0.00013269,2]
[347134258,1735516233475,-500.0,0.00013269,2]
[347134259,1735516233484,-500.0,0.00013269,2]
[347134260,1735516233494,-500.0,0.00013269,2]
[347134261,1735516233503,-500.0,0.00013269,2]
[347134262,1735516233513,-500.0,0.00013269,2]
[347134263,1735516233522,-1319.88,0.00013269,2]
[347134264,1735516233531,-500.0,0.00013269,2]
[347134265,1735516233541,-500.0,0.00013269,2]
[347134266,1735516233550,-500.0,0.00013269,2]
[347134267,1735516233560,-676.35,0.00013269,2]
[347134268,1735516233570,-500.0,0.00013269,2]
[347134269,1735516233579,-500.0,0.00013269,2]
[347134270,1735516233588,-500.0,0.00013269,2]
[347134271,1735516233598,-500.0,0.00013269,2]
[347134272,1735516233607,-500.0,0.00013269,2]
[347134273,1735516233617,-500.0,0.00013269,2]
[347134274,1735516233627,-500.0,0.00013269,2]
[347134275,1735516233636,-500.0,0.00013269,2]
[347134276,1735516233645,-1198.75,0.00013269,2]
[347134277,1735516233655,-530.33,0.00013269,2]
[347134278,1735516233664,-500.0,0.00013269,2]
[347134279,1735516233674,-697.72,0.00013269,2]
[347134280,1735516233683,-500.0,0.00013269,2]
[347134281,1735516233693,-500.0,0.00013269,2]
[347134282,1735516233702,-1282.33,0.00013269,2]
[347134283,1735516233712,-500.0,0.00013269,2]
[347134284,1735516233721,-500.0,0.00013269,2]
[347134285,1735516233730,-500.0,0.00013269,2]
[347134286,1735516233740,-500.0,0.00013269,2]
[347134287,1735516233749,-692.87,0.00013269,2]
[347134288,1735516233759,-500.0,0.00013269,2]
[347134289,1735516233768,-735.52,0.00013269,2]
[347134290,1735516233778,-500.0,0.00013269,2]
[347134291,1735516233788,-500.0,0.00013269,2]
[347134292,1735516233797,-500.0,0.00013269,2]
[347134293,1735516233807,-500.0,0.00013269,2]
[347134294,1735516233816,-500.0,0.00013269,2]
[347134295,1735516233825,-500.0,0.00013269,2]
[347134296,1735516233834,-500.0,0.00013269,2]
[347134297,1735516233844,-500.0,0.00013269,2]
[347134298,1735516233853,-500.0,0.00013269,2]
[347134299,1735516233863,-500.0,0.00013269,2]
[347134300,1735516233872,-500.0,0.00013269,2]
[347134301,1735516233883,-512.72,0.00013269,2]
[347134302,1735516233893,-1776.82,0.00013269,2]
[347134303,1735516233905,-500.0,0.00013269,2]
[347134304,1735516233915,-517.15206019,0.00013269,2]
[347134305,1735516233925,-500.0,0.00013269,2]
[347134306,1735516233934,-723.52,0.00013269,2]
[347134307,1735516233944,-500.0,0.00013269,2]
[347134308,1735516233954,-500.0,0.00013269,2]
[347134309,1735516233963,-500.0,0.00013269,2]
[347134310,1735516233973,-1218.13,0.00013269,2]
[347134311,1735516233985,-500.0,0.00013269,2]
[347134312,1735516233995,-500.0,0.00013269,2]
[347134313,1735516234004,-523.81,0.00013269,2]
[347134314,1735516234014,-500.0,0.00013269,2]
[347134315,1735516234024,-500.0,0.00013269,2]
[347134316,1735516234033,-500.0,0.00013269,2]
[347134317,1735516234043,-5319.35,0.00013269,2]
[347134318,1735516234052,-500.0,0.00013269,2]
[347134319,1735516234062,-500.0,0.00013269,2]
[347134320,1735516234071,-672.66,0.00013269,2]
[347134321,1735516234080,-500.0,0.00013269,2]
[347134322,1735516234090,-672.68,0.00013269,2]
[347134323,1735516234100,-500.0,0.00013269,2]
[347134324,1735516234110,-3466.35,0.00013269,2]
[347134325,1735516234119,-500.0,0.00013269,2]
[347134326,1735516234129,-500.0,0.00013269,2]
[347134327,1735516234139,-500.0,0.00013269,2]
[347134328,1735516234148,-500.0,0.00013269,2]
[347134329,1735516234158,-500.0,0.00013269,2]
[347134330,1735516234167,-500.0,0.00013269,2]
[347134331,1735516234176,-500.0,0.00013269,2]
[347134332,1735516234186,-500.0,0.00013269,2]
[347134333,1735516234195,-530.97,0.00013269,2]
[347134334,1735516234205,-500.0,0.00013269,2]
[347134335,1735516234215,-500.0,0.00013269,2]
[347134336,1735516234224,-500.0,0.00013269,2]
[347134337,1735516234234,-500.0,0.00013269,2]
[347134338,1735516234243,-504.33,0.00013269,2]
[347134339,1735516234252,-500.0,0.00013269,2]
[347134340,1735516234262,-500.0,0.00013269,2]
[347134341,1735516234271,-500.0,0.00013269,2]
[347134342,1735516234280,-500.0,0.00013269,2]
[347134343,1735516234290,-302.37500213,0.00013269,2]
[347134344,1735516234299,-671.31,0.00013269,2]
[347134345,1735516234309,-1484.53,0.00013269,2]
[347134346,1735516234318,-513.87,0.00013269,2]
[347134347,1735516234328,-500.0,0.00013269,2]
[347134348,1735516234337,-500.0,0.00013269,2]
[347134349,1735516234346,-600.15,0.00013269,2]
[347134350,1735516234356,-500.0,0.00013269,2]
[347134351,1735516234366,-500.0,0.00013269,2]
[347134352,1735516234376,-738.43,0.00013269,2]
[347134353,1735516234386,-500.0,0.00013269,2]
[347134354,1735516234395,-683.82,0.00013269,2]
[347134355,1735516234405,-500.0,0.00013269,2]
[347134356,1735516234414,-8714.31,0.00013269,2]
[347134357,1735516234424,-500.0,0.00013269,2]
[347134358,1735516234434,-502.69,0.00013269,2]
[347134359,1735516234444,-500.0,0.00013269,2]
[347134360,1735516234454,-500.0,0.00013269,2]
[347134361,1735516234463,-528.26,0.00013269,2]
[347134362,1735516234473,-500.0,0.00013269,2]
[347134363,1735516234483,-500.0,0.00013269,2]
[347134364,1735516234492,-501.7,0.00013269,2]
[347134365,1735516234502,-737.39,0.00013269,2]
[347134366,1735516234512,-500.0,0.00013269,2]
[347134367,1735516234522,-542.91,0.00013269,2]
[347134368,1735516234531,-500.0,0.00013269,2]
[347134369,1735516234541,-500.0,0.00013269,2]
[347134370,1735516234551,-623.23,0.00013269,2]
[347134371,1735516234560,-500.0,0.00013269,2]
[347134372,1735516234569,-549.91,0.00013269,2]
[347134373,1735516234579,-859.18,0.00013269,2]
[347134374,1735516234588,-634.86,0.00013269,2]
[347134375,1735516234599,-1333.37,0.00013269,2]
[347134376,1735516234608,-670.56,0.00013269,2]
[347134377,1735516234617,-500.0,0.00013269,2]
[347134378,1735516234628,-621.89,0.00013269,2]
[347134379,1735516234637,-500.0,0.00013269,2]
[347134380,1735516234646,-1297.3,0.00013269,2]
[347134381,1735516234656,-855.09,0.00013269,2]
[347134382,1735516234665,-539.58,0.00013269,2]
[347134383,1735516234674,-804.2,0.00013269,2]
[347134384,1735516234684,-646.65,0.00013269,2]
[347134385,1735516234693,-530.85,0.00013269,2]
[347134386,1735516234703,-1681.84,0.00013269,2]
[347134387,1735516234712,-592.23,0.00013269,2]
[347134388,1735516234721,-702.71,0.00013269,2]
[347134389,1735516234730,-785.18,0.00013269,2]
[347134390,1735516234740,-494.05,0.00013269,2]
[347134391,1735516234750,-495.73,0.00013269,2]
[347134392,1735516234760,-499.29,0.00013269,2]
[347134393,1735516234769,-499.31,0.00013269,2]
[347134394,1735516234779,-500.0,0.0001327,2]
[347134395,1735516234789,-500.0,0.0001327,2]
[347134396,1735516234798,-500.0,0.0001327,2]
[347134397,1735516234808,-500.0,0.0001327,2]
[347134398,1735516234817,-500.0,0.0001327,2]
[347134399,1735516234827,-500.0,0.0001327,2]
[347134400,1735516234836,-500.0,0.0001327,2]
[347134401,1735516234845,-966.97,0.0001327,2]
[347134402,1735516234855,-500.0,0.0001327,2]
[347134403,1735516234865,-500.0,0.0001327,2]